bitfinex/quotes_ETHUSD_20250112
["timestamp","ask_amount","ask_price","bid_price","bid_amount"]
[1736690928206,2.13486,3278.9,3278.5,0.55]
[1736690929068,2.91655,3279.3,3278.8,0.0075]
[1736690929275,2.91655,3279.3,3278.9,0.55]
[1736690929568,2.13434,3279.7,3279.0,0.03049443]
[1736690929767,2.13446,3279.6,3279.0,0.03049443]
[1736690929948,0.81520753,3279.8,3279.1,0.0225]
[1736690930111,2.13448,3279.5,3279.1,0.0225]
[1736690930684,0.13542518,3279.4,3279.1,0.0225]
[1736690931109,0.13542518,3279.4,3278.6,3.0]
[1736690931313,0.13542518,3279.4,3278.7,0.84479398]
[1736690931514,2.13441,3279.6,3278.8,0.5725]
[1736690931810,3.0819325,3280.0,3279.2,0.0225]
[1736690931811,0.9477925,3280.0,3279.2,0.0225]
[1736690932068,2.13427,3279.8,3279.3,0.55]
[1736690932375,2.13291,3282.0,3280.6,2.13371]
[1736690932550,0.7819,3282.1,3280.9,0.8143]
[1736690932717,1.70742258,3281.7,3281.0,0.03047074]
[1736690933279,1.45574883,3281.7,3281.4,0.8143]
[1736690933432,0.85371129,3281.7,3281.4,1.19573]
[1736690933753,2.98678129,3281.7,3281.0,0.8143]
[1736690933912,2.13308,3281.7,3281.1,0.5725]
[1736690934649,2.13317,3281.5,3281.1,0.5725]
[1736690935155,2.13323,3281.5,3281.1,0.0225]
[1736690935317,2.16632753,3281.8,3281.1,0.0225]
[1736690935518,2.13326,3281.4,3281.1,0.0225]
[1736690935914,0.03330753,3281.8,3281.1,0.0225]
[1736690936143,2.13292,3281.9,3281.3,0.5725]
[1736690936341,2.13298,3281.8,3281.3,0.5725]
[1736690936514,0.03330753,3282.2,3281.3,0.5725]
[1736690936720,2.13323,3281.4,3280.9,0.8143]
[1736690937120,2.13323,3281.4,3281.0,0.55]
[1736690937316,2.13323,3281.4,3281.2,0.55]
[1736690937517,0.7819,3281.8,3281.3,0.0225]
[1736690937717,2.13311,3281.6,3281.3,0.0225]
[1736690938121,2.13307,3281.7,3281.3,0.0225]
[1736690938431,2.13324,3281.4,3280.9,0.8143]
[1736690938959,2.13331,3281.3,3281.0,0.5725]
[1736690939948,0.13479831,3281.2,3281.0,0.5725]
[1736690940358,2.13324,3281.4,3281.0,0.5725]
[1736690940726,0.13021038,3281.3,3281.0,0.5725]
[1736690942126,0.13021038,3281.3,3281.0,1.01118]
[1736690942328,0.13021038,3281.3,3281.2,1.3505]
[1736690942582,2.13286,3282.0,3281.4,0.0225]
[1736690942783,2.13286,3282.0,3281.6,0.0225]
[1736690943123,0.12600075,3281.9,3281.6,0.0225]
[1736690944444,2.13271,3282.2,3281.8,0.0225]
[1736690944788,2.47206628,3282.1,3281.8,0.0225]
[1736690945153,2.47206628,3282.1,3281.4,0.015]
[1736690945535,2.13305,3281.7,3281.4,0.015]
[1736690945951,0.12610239,3281.6,3281.4,0.565]
[1736690946357,2.25926239,3281.6,3281.4,0.565]
[1736690947543,2.25926239,3281.6,3281.4,0.015]
[1736690948052,0.43202863,3281.6,3280.8,0.778]
[1736690948376,2.13329,3281.4,3280.8,0.778]
[1736690948613,2.13329,3281.4,3280.9,0.60297669]
[1736690948778,0.11805826,3281.3,3280.9,0.5725]
[1736690948942,0.11805826,3281.3,3280.9,0.5575]
[1736690949978,0.11805826,3281.3,3281.1,0.55]
[1736690950182,0.11805826,3281.3,3281.0,0.015]
[1736690950358,0.11805826,3281.3,3281.1,0.0075]
[1736690950678,2.13311,3281.6,3281.1,0.5575]
[1736690950848,0.11818189,3281.2,3281.1,0.0225]
[1736690951043,2.13319,3281.5,3281.1,0.05297376]
[1736690951248,2.1333,3281.3,3281.1,0.0225]
[1736690951586,0.213319,3281.5,3280.9,0.55]
[1736690951899,0.11821823,3281.4,3281.0,0.0225]
[1736690952198,0.11821823,3281.4,3281.1,0.55]
[1736690952402,2.13309,3281.7,3281.1,0.55]
[1736690952599,2.13309,3281.7,3281.0,0.05297395]
[1736690952600,2.25132823,3281.6,3281.0,0.0225]
[1736690953192,2.25132823,3281.6,3281.1,0.55]
[1736690953600,2.25132823,3281.6,3281.2,0.03047373]
[1736690954234,0.11821823,3281.6,3281.3,0.5725]
[1736690954391,2.13299,3281.8,3281.4,0.58047142]
[1736690954586,0.11821823,3281.7,3281.4,0.58047142]
[1736690954883,2.13299,3281.8,3281.4,0.03047142]
[1736690955092,0.11826913,3281.7,3281.3,0.0225]
[1736690955291,0.11826913,3281.7,3281.5,0.5725]
[1736690955491,2.13291,3281.9,3281.5,0.5725]
[1736690955667,0.11853816,3281.6,3281.5,0.60297031]
[1736690955871,2.13291,3281.9,3281.5,0.60297031]
[1736690956071,0.11419781,3281.8,3281.5,0.60297031]
[1736690956605,0.11419781,3281.8,3281.5,0.5725]
[1736690956987,2.24718781,3281.8,3281.5,0.5725]
[1736690957182,0.11419781,3281.8,3281.5,0.60297075]
[1736690957394,0.997571,3282.1,3281.5,0.60297012]
[1736690957566,2.13296,3281.9,3281.5,0.5725]
[1736690958007,2.13296,3281.9,3281.5,0.60297015]
[1736690958304,0.11428505,3281.8,3281.5,0.5725]
[1736690959276,2.13278,3282.1,3281.7,0.5575]
[1736690959474,0.11420508,3282.0,3281.7,0.5575]
[1736690959675,2.13292,3281.9,3281.7,0.0075]
[1736690959868,0.11420508,3281.8,3281.6,0.0075]
[1736690960297,0.11420508,3281.8,3281.1,3.0]
[1736690960487,2.24718508,3281.8,3281.2,0.03046923]
[1736690960682,2.16608753,3282.1,3281.3,0.5725]
[1736690960888,2.13309,3281.7,3281.3,0.0225]
[1736690961571,2.2473787,3281.6,3281.3,0.0225]
[1736690962014,2.13317,3281.5,3281.2,0.55]
[1736690962382,2.13317,3281.5,3281.1,0.5725]
[1736690962594,0.1142487,3281.4,3281.1,0.5725]
[1736690962921,2.2474987,3281.4,3281.1,0.5725]
[1736690963107,2.13344,3281.1,3280.7,0.822]
[1736690963506,2.13332,3281.3,3280.8,0.04547721]
[1736690964116,2.2476287,3281.2,3280.8,0.015]
[1736690964414,2.2476287,3281.2,3280.6,5.37]
[1736690964415,2.13364,3280.8,3280.6,5.37]
[1736690964618,0.03330753,3281.1,3280.6,5.37]
[1736690964778,2.13369,3280.7,3280.1,0.822]
[1736690965318,0.11393605,3280.6,3280.2,0.565]
[1736690965516,0.11393605,3280.6,3280.2,0.015]
[1736690965814,2.13369,3280.7,3280.2,0.3987]
[1736690966521,2.13377,3280.6,3280.2,0.015]
[1736690966743,0.03330753,3280.8,3280.2,0.015]
[1736690966917,0.1137761,3280.5,3280.2,0.015]
[1736690967234,2.13372,3280.7,3280.2,0.015]
[1736690967438,0.11360157,3280.6,3280.2,0.015]
[1736690968731,2.24739157,3280.6,3280.2,0.015]
[1736690971177,0.11360157,3280.6,3280.5,0.5725]
[1736690971345,0.11360157,3280.6,3280.5,0.60297695]
[1736690971505,2.13325,3281.4,3280.5,9.40297695]
[1736690971703,2.13325,3281.4,3280.5,9.3725]
[1736690971912,0.11299059,3281.3,3280.5,9.3725]
[1736690972112,0.11299059,3281.3,3280.7,0.5725]
[1736690972334,2.24630059,3281.3,3280.9,0.5725]
[1736690972536,0.11299059,3281.3,3280.9,0.5725]
[1736690972737,0.11299059,3281.3,3280.9,0.0225]
[1736690972936,2.16649753,3281.5,3280.7,0.55]
[1736690973243,2.1337,3280.7,3280.1,0.768]
[1736690973438,2.13375,3280.6,3280.2,0.5725]
[1736690974951,2.13375,3280.6,3280.2,0.0225]
[1736690976727,0.81900753,3280.8,3280.2,0.0225]
[1736690976956,2.13384,3280.5,3280.2,0.0225]
[1736690977145,0.11315791,3280.7,3280.2,0.05298263]
[1736690977325,0.7857,3280.8,3280.2,0.05298263]
[1736690977512,2.13375,3280.6,3280.2,0.05298263]
[1736690978949,2.13386,3280.5,3280.2,0.0225]
[1736690979126,0.81900753,3280.8,3280.2,0.0225]
[1736690979448,0.11315791,3280.7,3280.2,0.0225]
[1736690979655,2.13385,3280.5,3280.2,0.0225]
[1736690980947,2.13371,3280.7,3280.2,0.0225]
[1736690981515,0.11315061,3280.6,3280.2,0.0225]
[1736690982577,2.24692061,3280.6,3280.2,0.0225]
[1736690984176,2.13387,3280.5,3280.2,0.0225]
[1736690984888,0.11315061,3280.4,3280.2,0.0225]
[1736690985072,2.13372,3280.7,3280.2,0.0225]
[1736690985272,0.11315061,3280.6,3280.2,0.0225]
[1736690987184,0.11315061,3280.6,3280.2,0.5725]
[1736690987589,0.11315061,3280.6,3280.2,0.0225]
[1736690987946,0.11315061,3280.6,3280.4,0.55]
[1736690988145,0.08396998,3280.6,3280.4,0.55]
[1736690988345,0.11217793,3280.6,3280.4,0.55]
[1736690989185,2.13358,3280.9,3280.4,0.55]
[1736690989370,0.11222159,3280.5,3280.4,0.5725]
[1736690989898,2.13358,3280.9,3280.4,0.5725]
[1736690990192,0.11222159,3280.8,3280.4,0.602981]
[1736690990598,2.24587159,3280.8,3280.4,0.602981]
[1736690994375,2.24587159,3280.8,3280.4,0.5725]
[1736691000047,0.11222159,3280.8,3280.4,0.5725]
[1736691000354,2.13358,3280.9,3280.4,0.5725]
[1736691000554,0.11232343,3280.7,3280.4,0.5725]
[1736691000794,0.11231613,3280.8,3280.4,0.5725]
[1736691000937,2.13358,3280.9,3280.4,0.5725]
[1736691001506,0.11231613,3280.8,3280.4,0.5725]
[1736691002305,0.28576301,3280.7,3280.4,0.5725]
[1736691002904,0.11231613,3280.6,3280.4,0.5725]
[1736691003906,2.13345,3281.1,3280.4,0.5725]
[1736691004050,2.24581159,3281.0,3280.4,0.5725]
[1736691005608,2.13356,3280.9,3280.4,0.5725]
[1736691005811,0.39733873,3281.0,3279.9,0.0304812]
[1736691006130,2.13377,3280.6,3280.0,0.7909]
[1736691006538,2.13377,3280.6,3280.1,0.5725]
[1736691006825,0.03330753,3280.8,3280.1,0.5725]
[1736691007124,0.11230159,3280.7,3280.3,0.5725]
[1736691007406,0.11230159,3280.7,3280.5,0.5725]
[1736691007607,0.7879,3281.2,3280.5,0.5725]
[1736691007785,0.7879,3281.2,3280.5,0.0225]
[1736691007981,0.11222886,3281.1,3280.5,0.0225]
[1736691008181,0.11222886,3281.1,3280.7,0.5725]
[1736691008394,2.13332,3281.3,3280.7,0.60297761]
[1736691008580,0.11211249,3281.0,3280.7,0.60297761]
[1736691008783,2.13332,3281.3,3280.7,0.60297761]
[1736691009175,0.11224342,3281.2,3280.7,0.60297761]
[1736691009792,2.13324,3281.4,3280.7,0.60297761]
[1736691009975,0.11224342,3281.1,3280.7,0.60297761]
[1736691010173,0.7642,3281.8,3280.9,0.5725]
[1736691010403,2.89719,3281.8,3281.1,0.5725]
[1736691010597,2.13304,3281.7,3281.1,0.60297434]
[1736691010789,2.24536342,3281.7,3281.1,0.60297434]
[1736691011203,0.7642,3281.8,3281.1,0.60297434]
[1736691011387,0.11232342,3281.6,3281.1,0.60297434]
[1736691011591,2.1331,3281.6,3281.1,0.60297434]
[1736691011993,0.11251249,3281.5,3281.1,0.60297434]
[1736691012734,2.13297,3281.8,3281.3,0.55]
[1736691013215,0.11257792,3281.7,3281.3,0.55]
[1736691013580,2.13297,3281.8,3281.3,0.55]
[1736691014002,0.11257792,3281.7,3281.4,0.0225]
[1736691014201,0.11257792,3281.7,3281.6,0.0225]
[1736691014405,2.1329,3282.0,3281.6,0.0225]
[1736691014603,0.11257792,3281.7,3281.6,0.0225]
[1736691014816,2.1329,3282.0,3281.6,0.0225]
[1736691015118,0.11269425,3281.9,3281.6,0.0225]
[1736691015678,2.13281,3282.1,3281.6,0.0225]
[1736691015916,0.11269425,3282.0,3281.6,0.0225]
[1736691016715,0.11269425,3282.0,3281.8,0.55]
[1736691017023,2.13258,3282.4,3281.8,0.55]
[1736691017323,2.13258,3282.4,3281.8,0.5725]
[1736691017704,2.13258,3282.4,3281.9,0.0225]
[1736691018093,0.11278879,3282.3,3281.9,0.0225]
[1736691018514,0.11278879,3282.3,3282.1,0.55]
[1736691019420,0.11278879,3282.3,3282.2,0.015]
[1736691019619,0.7642,3282.9,3282.2,0.015]
[1736691019994,0.1128102,3282.8,3282.2,0.015]
[1736691020389,2.13239,3282.7,3282.2,0.015]
[1736691020721,0.1129047,3282.6,3282.2,0.015]
[1736691023015,2.13227,3282.9,3282.2,0.015]
[1736691023216,0.11298467,3282.5,3282.2,0.015]
[1736691023404,2.13227,3282.9,3282.2,0.015]
[1736691023581,0.11298467,3282.4,3282.2,0.015]
[1736691023781,2.13247,3282.6,3282.2,0.015]
[1736691024016,0.11298467,3282.3,3282.2,0.0225]
[1736691024221,2.13247,3282.6,3282.2,0.0225]
[1736691024597,0.11298467,3282.5,3282.2,0.015]
[1736691024800,2.13258,3282.4,3282.1,0.55]
[1736691025027,0.9104922,3282.5,3281.8,3.0]
[1736691025330,2.13272,3282.2,3281.7,9.62]
[1736691025628,1.88272,3282.2,3281.8,0.515]
[1736691026127,0.11402434,3282.1,3281.8,0.515]
[1736691026829,0.11402434,3282.1,3281.8,0.5]
[1736691028537,0.11402434,3282.1,3281.7,0.0075]
[1736691029145,0.7847,3282.0,3281.0,9.23925]
[1736691029328,2.133,3281.8,3281.1,1.694325]
[1736691029531,0.11381357,3281.7,3281.3,0.7704]
[1736691029853,2.1329,3282.0,3281.3,0.7704]
[1736691030151,2.13291,3281.9,3281.4,0.55]
[1736691030444,2.24673811,3281.9,3281.4,0.55]
[1736691030665,2.24673811,3281.9,3281.0,0.7704]
[1736691030666,1.04268134,3281.8,3281.0,0.7704]
[1736691030954,2.13311,3281.6,3281.0,0.7704]
[1736691031305,0.11346467,3281.5,3281.1,0.5575]
[1736691031806,2.91799,3281.4,3280.8,8.8]
[1736691032106,2.31121835,3281.3,3280.5,8.8]
[1736691032304,2.31121835,3281.3,3280.7,1.2304783]
[1736691032701,2.31121835,3281.3,3280.8,0.5575]
[1736691032702,2.27791082,3281.3,3280.8,0.5575]
[1736691033345,0.14455082,3281.3,3280.8,0.58047674]
[1736691033506,2.13347,3281.1,3280.7,1.2304783]
[1736691033702,0.14428904,3281.2,3280.7,0.91186166]
[1736691033902,2.13349,3281.0,3280.7,0.91186166]
[1736691034101,2.13349,3281.0,3280.8,0.55]
[1736691034505,0.14428904,3280.9,3280.8,0.55]
[1736691034732,0.14428904,3280.9,3280.7,0.91186166]
[1736691034945,0.7847,3280.8,3279.8,8.8]
[1736691035146,2.13382,3280.5,3279.7,9.5704]
[1736691036146,2.13382,3280.5,3279.8,3.015]
[1736691036323,1.21336407,3280.4,3280.0,0.0075]
[1736691037515,0.2847386,3280.3,3280.0,0.0075]
[1736691037857,0.2847386,3280.3,3280.2,0.0225]
[1736691037858,0.42836587,3280.3,3280.2,0.0225]
[1736691038023,0.42836587,3280.3,3280.2,0.9537308]
[1736691038212,0.2847386,3280.3,3280.2,0.9537308]
[1736691039013,0.2847386,3280.3,3280.2,0.5725]
[1736691039456,0.7847,3280.3,3279.7,8.8]
[1736691039754,0.7847,3280.3,3279.8,3.5725]
[1736691039937,0.14341636,3280.2,3279.8,12.3725]
[1736691040266,0.7847,3280.3,3280.0,0.565]
[1736691040562,0.7847,3280.6,3280.0,0.565]
[1736691040735,0.7847,3280.2,3279.4,9.11871012]
[1736691040929,2.13408,3280.1,3279.5,0.03798773]
[1736691041162,0.14327087,3280.1,3279.6,0.5575]
[1736691041822,2.91874,3280.2,3279.6,0.5575]
[1736691042025,0.14324905,3280.0,3279.6,0.5575]
[1736691042227,2.13409,3280.1,3279.6,0.5575]
[1736691042449,0.14324905,3279.9,3279.6,0.5575]
[1736691042655,0.03330753,3279.9,3279.5,3.0]
[1736691042852,0.14324905,3279.8,3279.5,3.0]
[1736691043065,2.91874,3280.2,3279.5,3.0]
[1736691043243,0.14271795,3279.7,3279.6,0.55]
[1736691043437,2.13428,3279.8,3279.6,0.55]
[1736691043663,0.1423978,3279.7,3279.6,0.55]
[1736691044043,2.13428,3279.8,3279.6,0.55]
[1736691044244,0.1423978,3279.7,3279.6,0.55]
[1736691044566,2.13428,3279.8,3279.5,0.55]
[1736691044766,0.1423978,3279.7,3279.5,0.55]
[1736691044970,0.7847,3279.6,3279.4,0.31871012]
[1736691045168,2.13447,3279.5,3279.4,0.31871012]
[1736691045330,2.27647482,3279.5,3279.4,0.86871012]
[1736691045537,2.27647482,3279.5,3279.4,0.55]
[1736691046241,0.7847,3279.4,3278.8,0.31884666]
[1736691046441,2.13469,3279.2,3278.8,0.31884666]
[1736691046670,2.13486,3278.9,3278.8,0.31884666]
[1736691046871,2.16816753,3278.9,3278.8,0.31884666]
[1736691047274,2.30968464,3278.9,3277.9,0.7704]
[1736691047568,2.13513,3278.5,3278.4,0.31888185]
[1736691047778,2.13513,3278.5,3277.9,0.7704]
[1736691047975,2.13513,3278.5,3278.1,0.31889108]
[1736691048269,0.14094921,3278.4,3278.1,0.31889108]
[1736691049369,0.14094921,3278.4,3278.2,0.55]
[1736691049673,2.91955,3279.0,3278.4,0.55]
[1736691050234,0.14081084,3278.9,3278.4,0.55]
[1736691052066,0.17411837,3278.9,3278.1,0.0075]
[1736691052567,0.03330753,3278.9,3278.3,0.0075]
[1736691052930,0.03330753,3278.9,3278.3,0.03800026]
[1736691053172,0.03330753,3278.9,3278.2,0.565]
[1736691053333,0.03330753,3278.9,3278.2,1.80225]
[1736691053537,2.91955,3279.0,3278.3,0.58050027]
[1736691053734,2.16818753,3278.9,3278.3,0.55]
[1736691054070,2.30876539,3278.9,3278.3,0.55]
[1736691054777,2.13493,3278.8,3278.3,0.55]
[1736691054938,2.27544232,3278.8,3278.3,0.55]
[1736691055460,0.03330753,3278.7,3278.3,0.55]
[1736691055662,2.13513,3278.5,3278.1,3.0]
[1736691056076,0.14049047,3278.4,3278.1,3.0]
[1736691056373,0.14049047,3278.4,3278.2,0.55]
[1736691056574,2.13501,3278.7,3278.2,0.55]
[1736691056766,0.14033024,3278.3,3278.2,0.55]
[1736691056964,0.03330753,3278.6,3278.2,0.55]
[1736691057154,0.14033024,3278.3,3278.2,0.55]
[1736691057634,0.821,3278.4,3278.2,0.55]
[1736691057837,0.14033024,3278.3,3278.0,8.8]
[1736691058279,0.03330753,3278.2,3277.6,0.0075]
[1736691058477,0.14023555,3278.2,3277.4,0.8152]
[1736691058743,2.27554555,3278.2,3277.5,0.0305068]
[1736691059069,2.13548,3278.0,3277.4,0.8152]
[1736691059377,2.16878753,3278.0,3277.5,0.55]
[1736691059584,0.17354308,3277.9,3277.4,0.8152]
[1736691059936,0.17354308,3277.9,3277.0,8.8]
[1736691060137,0.821,3277.8,3277.1,2.2322]
[1736691060351,0.821,3277.8,3276.7,2.13628]
[1736691060352,0.03330753,3277.7,3276.7,0.8152]
[1736691060565,2.9566,3277.8,3276.7,0.8152]
[1736691060837,0.13984945,3277.6,3276.7,0.8152]
[1736691061063,2.13576,3277.6,3276.7,0.84571465]
[1736691061507,0.13936868,3277.5,3276.7,0.84571465]
[1736691061681,0.13936868,3277.5,3276.8,0.38457147]
[1736691062479,0.17267621,3277.5,3276.9,0.55]
[1736691062679,0.13936868,3277.5,3276.9,0.55]
[1736691062979,2.13584,3277.4,3276.8,0.55]
[1736691063180,0.821,3277.2,3276.4,0.8152]
[1736691063483,0.821,3277.2,3276.5,0.03051653]
[1736691063845,0.13886583,3277.1,3276.5,0.58051653]
[1736691064243,0.13886583,3277.1,3276.5,0.55]
[1736691064439,0.17217336,3277.1,3276.5,3.55]
[1736691064683,0.03330753,3277.1,3276.5,3.55]
[1736691064978,0.821,3277.2,3276.5,3.95806831]
[1736691065407,0.03330753,3277.1,3276.5,3.95806831]
[1736691065905,0.03330753,3277.1,3276.2,5.70392858]
[1736691065906,2.9571,3277.0,3276.2,5.68892858]
[1736691066277,0.03330753,3276.9,3276.4,0.55]
[1736691066686,0.13851589,3276.8,3276.4,0.55]
[1736691067511,0.03330753,3276.9,3276.4,0.55]
[1736691067664,2.13623,3276.8,3276.4,0.55]
[1736691067864,0.7525,3276.6,3276.4,0.55]
[1736691068104,0.7525,3276.6,3276.3,3.0]
[1736691068277,0.13833359,3276.5,3275.9,3.0]
[1736691068479,0.13833359,3276.5,3276.0,0.5575]
[1736691068684,0.7525,3276.6,3276.0,0.5575]
[1736691068881,0.7525,3276.6,3276.2,0.55]
[1736691069605,0.7525,3276.6,3275.9,3.0]
[1736691069805,0.7525,3276.6,3275.9,2.95]
[1736691070027,0.7525,3276.6,3276.0,0.55]
[1736691070173,0.13833359,3276.5,3276.0,0.55]
[1736691071032,0.221,3277.4,3276.3,0.015]
[1736691071211,0.7737,3277.3,3276.4,0.55]
[1736691071631,0.13833359,3277.2,3276.4,0.55]
[1736691071939,0.13833359,3277.2,3276.5,0.0225]
[1736691072230,0.7737,3277.3,3276.7,0.015]
[1736691072433,0.7737,3277.5,3276.9,0.55]
[1736691072631,0.13282605,3277.2,3276.9,0.55]
[1736691072774,0.7737,3277.5,3276.9,0.55]
[1736691072975,0.13282605,3277.4,3276.9,0.55]
[1736691077986,2.13591,3277.3,3276.8,0.55]
[1736691078217,0.03330753,3277.2,3276.8,0.55]
[1736691078412,0.16613358,3277.2,3276.6,0.565]
[1736691078619,0.03330753,3277.2,3276.6,0.565]
[1736691080495,2.90949,3277.5,3276.6,1.217958]
[1736691080694,2.90949,3277.5,3276.7,0.03051492]
[1736691080917,0.13282605,3277.4,3276.7,0.03051492]
[1736691083108,0.13282605,3277.4,3277.3,5.7009]
[1736691083303,0.13282605,3277.4,3277.3,6.529]
[1736691083517,0.7737,3278.4,3277.5,2.68576]
[1736691083720,0.7737,3278.4,3277.7,0.55]
[1736691083924,0.13305252,3278.3,3278.0,0.55]
[1736691084153,0.7737,3279.0,3278.3,0.55]
[1736691084471,0.7737,3279.3,3278.3,2.68523]
[1736691084860,0.44652051,3279.2,3278.3,2.68523]
[1736691085227,0.44652051,3279.2,3278.4,0.03049973]
[1736691085420,0.13379751,3279.2,3278.5,0.565]
[1736691086574,0.13379751,3279.2,3278.5,5.70011]
[1736691086782,0.13379751,3279.2,3278.7,5.69995]
[1736691086979,0.13379751,3279.2,3278.9,0.0075]
[1736691087121,0.7737,3279.6,3278.9,1.48629449]
[1736691087520,0.13561538,3279.5,3278.9,0.5575]
[1736691087920,0.13561538,3279.5,3278.9,0.0075]
[1736691088360,0.13561538,3279.5,3279.0,0.0075]
[1736691088686,0.829,3280.3,3279.5,0.0075]
[1736691088818,0.829,3280.3,3279.6,0.55]
[1736691089018,0.43231803,3280.2,3279.6,0.55]
[1736691090237,0.03330753,3280.1,3279.4,0.565]
[1736691090853,0.1366149,3280.0,3279.4,0.565]
[1736691091573,2.16732753,3280.2,3279.4,0.55]
[1736691091762,2.13419,3280.0,3279.4,0.55]
[1736691091964,0.13665865,3279.9,3279.4,0.55]
[1736691092183,0.13665865,3279.9,3279.4,1.3444]
[1736691092486,0.13665865,3279.8,3279.4,1.3444]
[1736691092823,0.829,3280.3,3279.4,0.55]
[1736691093030,2.27100865,3279.7,3279.3,0.55]
[1736691093250,0.03330753,3279.6,3279.2,8.8]
[1736691093624,0.13654197,3279.5,3279.2,8.8]
[1736691094077,2.36145087,3279.7,3279.2,8.8]
[1736691094264,0.13654197,3279.4,3279.1,0.55]
[1736691094464,2.36145087,3279.7,3279.1,0.55]
[1736691094626,0.22710087,3279.7,3279.1,0.55]
[1736691094979,2.13422,3279.9,3279.1,0.55]
[1736691095333,0.03330753,3279.8,3279.1,0.55]
[1736691095557,2.13434,3279.7,3279.1,0.55]
[1736691095763,0.03330753,3279.6,3278.8,0.5725]
[1736691095967,0.16967445,3279.6,3278.8,0.5725]
[1736691096289,0.48016589,3279.6,3278.8,0.5725]
[1736691098354,0.34379897,3279.6,3279.0,0.565]
[1736691098934,0.34379897,3279.6,3279.0,0.015]
[1736691101054,2.47825897,3279.6,3278.8,0.55]
[1736691101455,0.13652012,3279.5,3278.8,0.55]
[1736691101658,0.03330753,3279.4,3278.7,0.565]
[1736691102174,2.1346,3279.3,3278.6,0.7944]
[1736691102332,0.136542,3279.2,3278.7,0.55]
[1736691102528,0.136542,3279.2,3278.6,0.7944]
[1736691102734,0.8009,3279.1,3278.5,0.015]
[1736691103188,0.8009,3279.1,3278.3,0.7944]
[1736691103189,2.16815753,3279.0,3278.3,0.7944]
[1736691103351,0.29690575,3278.9,3278.4,0.0075]
[1736691103549,0.13645446,3278.8,3278.4,0.0075]
[1736691103755,2.16815753,3279.0,3278.4,0.5575]
[1736691103950,0.13645446,3278.9,3278.4,0.5575]
[1736691104379,0.13645446,3278.9,3278.4,0.58799961]
[1736691104573,0.8009,3279.1,3278.4,0.58799961]
[1736691104781,0.13618451,3279.0,3278.4,0.58799961]
[1736691105176,0.13618451,3279.0,3278.5,0.0075]
[1736691105384,0.03330753,3279.3,3278.6,0.55]
[1736691105690,0.13592189,3279.2,3278.6,0.55]
[1736691106727,0.03330753,3279.1,3278.6,0.55]
[1736691107052,0.8009,3279.4,3278.6,0.58049766]
[1736691107469,0.13603863,3279.3,3278.6,0.58049766]
[1736691107864,0.13603863,3279.3,3278.7,0.015]
[1736691108286,0.16934616,3279.3,3278.7,0.015]
[1736691109595,2.30395616,3279.3,3278.7,0.015]
[1736691109795,0.31048562,3279.2,3278.7,0.015]
[1736691109972,0.13607511,3279.1,3278.7,0.015]
[1736691110180,0.13607511,3279.1,3278.6,0.55]
[1736691110361,0.16938264,3279.1,3278.6,0.55]
[1736691110904,0.7856,3279.0,3278.6,0.55]
[1736691111303,0.13608968,3278.9,3278.6,0.55]
[1736691113871,0.16939721,3278.9,3278.4,8.8]
[1736691114294,0.03330753,3278.9,3278.5,0.55]
[1736691114607,0.13591459,3278.8,3278.5,0.55]
[1736691114973,0.13591459,3278.8,3278.7,0.5575]
[1736691115188,0.7856,3279.6,3278.7,0.5575]
[1736691115517,0.13134129,3279.5,3278.7,0.5575]
[1736691116519,0.13134129,3279.5,3279.0,0.015]
[1736691116718,0.7856,3279.6,3279.1,0.55]
[1736691117110,0.13134129,3279.5,3279.1,0.55]
[1736691117616,0.13134129,3279.5,3279.0,0.03049372]
[1736691117808,2.13448,3279.5,3278.8,3.0]
[1736691118022,0.13164832,3279.4,3278.9,0.55]
[1736691121238,0.13164832,3279.4,3278.7,0.565]
[1736691121443,2.426488,3279.5,3278.7,0.59549606]
[1736691121610,0.13164832,3279.4,3278.7,0.59549606]
[1736691121940,0.7856,3279.6,3278.9,0.565]
[1736691122133,0.7856,3279.6,3279.0,0.03049374]
[1736691122502,0.13164832,3279.5,3279.0,0.03049374]
[1736691124140,0.13164832,3279.5,3279.1,0.55]
[1736691124436,0.13164832,3279.5,3279.1,1.3111]
[1736691124639,2.91981,3279.9,3279.1,1.3111]
[1736691125998,0.7856,3280.4,3279.3,0.015]
[1736691126220,0.13174332,3279.8,3279.5,0.0075]
[1736691126441,0.7856,3280.4,3279.6,4.3186]
[1736691126638,0.7856,3280.4,3279.6,4.34908774]
[1736691126798,0.13178719,3280.3,3279.7,0.0075]
[1736691127003,0.13178719,3280.3,3279.8,0.55]
[1736691127198,0.7856,3280.4,3279.8,0.55]
[1736691127416,0.7856,3280.4,3279.7,0.5575]
[1736691127599,0.13178719,3280.3,3279.7,0.5575]
[1736691128542,0.03330753,3280.3,3279.7,0.5575]
[1736691128727,0.29527975,3280.2,3279.7,0.5575]
[1736691128899,0.13178719,3280.2,3279.7,0.5575]
[1736691129399,2.91949,3280.4,3279.7,0.5575]
[1736691129641,0.13178719,3280.1,3279.7,0.5575]
[1736691129847,0.7856,3280.4,3279.7,0.5575]
[1736691130205,0.1324742,3280.3,3279.7,0.5575]
[1736691130405,0.1324742,3280.3,3279.7,2.08660469]
[1736691130717,0.7856,3280.4,3279.7,2.08660469]
[1736691130951,0.03330753,3280.3,3279.7,2.08660469]
[1736691131125,0.03330753,3280.3,3279.7,0.5575]
[1736691131519,0.13256918,3280.2,3279.7,0.5575]
[1736691131925,2.91949,3280.4,3279.7,0.5575]
[1736691132229,0.1325911,3280.3,3279.7,0.5575]
[1736691133646,0.13255457,3280.2,3279.7,0.5575]
[1736691133840,2.13382,3280.5,3279.7,1.25893766]
[1736691134147,0.13254726,3280.4,3279.7,1.25893766]
[1736691135033,0.13254726,3280.4,3279.8,0.0075]